fUST/lending_fUST_20250910
["ID","MTS","AMOUNT","RATE_DAILY","PERIOD"]
[384659496,1757507449627,-480.0,0.00020293,2]
[384659498,1757507449636,-480.0,0.00020293,2]
[384659500,1757507449645,-480.0,0.00020293,2]
[384659502,1757507449655,-480.0,0.00020293,2]
[384659504,1757507449664,-482.1792326,0.00020293,2]
[384659506,1757507449677,-480.0,0.00020293,2]
[384659508,1757507449687,-1335.09,0.00020293,2]
[384659510,1757507449696,-481.6186561,0.00020293,2]
[384659512,1757507449705,-480.96590175,0.00020293,2]
[384659514,1757507449715,-531.32356336,0.00020293,2]
[384659516,1757507449724,-221.33957413,0.00020293,2]
[384659518,1757507449733,-480.0,0.00020293,2]
[384659529,1757507449826,-480.0,0.00020293,2]
[384659531,1757507449836,-480.0,0.00020293,2]
[384659533,1757507449846,-480.0,0.00020293,2]
[384659536,1757507449856,-373.18757569,0.00020293,2]
[384659538,1757507449866,-481.79391283,0.00020293,2]
[384659540,1757507449875,-477.24014437,0.00020293,2]
[384659542,1757507449884,-480.0,0.00020293,2]
[384659544,1757507449893,-480.0,0.00020293,2]
[384659546,1757507449903,-480.0,0.00020293,2]
[384659548,1757507449912,-480.86930627,0.00020293,2]
[384659550,1757507449922,-480.0,0.00020293,2]
[384659552,1757507449931,-482.29067602,0.00020293,2]
[384659553,1757507449940,-319.62515827,0.00020293,2]
[384659556,1757507449950,-480.42843241,0.00020293,2]
[384659558,1757507449960,-480.0,0.00020293,2]
[384659560,1757507449970,-480.0,0.00020293,2]
[384659562,1757507449980,-480.0,0.00020293,2]
[384659564,1757507449989,-480.0,0.00020293,2]
[384659566,1757507449998,-485.19074899,0.00020293,2]
[384659568,1757507450008,-480.0,0.00020295,2]
[384659570,1757507450017,-480.0,0.00020295,2]
[384659572,1757507450027,-480.0,0.00020295,2]
[384659574,1757507450036,-500.0,0.00020295,2]
[384659576,1757507450046,-480.0,0.00020295,2]
[384659578,1757507450055,-480.0,0.00020295,2]
[384659579,1757507450065,-480.0,0.00020295,2]
[384659581,1757507450075,-480.0,0.00020295,2]
[384659583,1757507450085,-480.0,0.00020295,2]
[384659584,1757507450095,-480.0,0.00020295,2]
[384659586,1757507450104,-480.0,0.00020295,2]
[384659587,1757507450114,-480.0,0.00020295,2]
[384659589,1757507450123,-480.0,0.00020295,2]
[384659590,1757507450133,-480.0,0.00020295,2]
[384659592,1757507450144,-480.0,0.00020295,2]
[384659593,1757507450154,-480.0,0.00020295,2]
[384659595,1757507450166,-480.0,0.00020295,2]
[384659596,1757507450177,-157.0,0.00020295,2]
[384659598,1757507450187,-480.0,0.00020295,2]
[384659600,1757507450197,-480.0,0.00020295,2]
[384659601,1757507450207,-480.0,0.00020295,2]
[384659602,1757507450216,-480.0,0.00020295,2]
[384659604,1757507450225,-480.0,0.00020295,2]
[384659606,1757507450236,-480.0,0.00020295,2]
[384659607,1757507450245,-480.0,0.00020295,2]
[384659609,1757507450256,-500.0,0.00020295,2]
[384659610,1757507450266,-440.0,0.00020295,2]
[384659612,1757507450275,-480.0,0.00020295,2]
[384659614,1757507450284,-480.0,0.00020295,2]
[384659615,1757507450293,-480.0,0.00020295,2]
[384659616,1757507450303,-480.0,0.00020295,2]
[384659618,1757507450312,-481.78168044,0.00020295,2]
[384659620,1757507450321,-480.0,0.00020295,2]
[384659621,1757507450331,-480.0,0.00020295,2]
[384659623,1757507450340,-480.0,0.00020295,2]
[384659625,1757507450349,-480.0,0.00020295,2]
[384659626,1757507450358,-480.0,0.00020295,2]
[384659628,1757507450367,-480.0,0.00020295,2]
[384659630,1757507450376,-480.0,0.00020295,2]
[384659631,1757507450385,-481.94520403,0.00020295,2]
[384659633,1757507450394,-480.0,0.00020295,2]
[384659634,1757507450403,-480.0,0.00020295,2]
[384659636,1757507450412,-480.0,0.00020295,2]
[384659638,1757507450425,-527.14082948,0.00020295,2]
[384659639,1757507450434,-551.0,0.00020295,2]
[384659641,1757507450444,-547.45,0.00020295,2]
[384659643,1757507450453,-480.0,0.00020295,2]
[384659644,1757507450463,-480.0,0.00020295,2]
[384659646,1757507450471,-480.0,0.00020295,2]
[384659647,1757507450481,-480.0,0.00020295,2]
[384659649,1757507450490,-480.0,0.00020295,2]
[384659651,1757507450499,-480.0,0.00020295,2]
[384659652,1757507450508,-480.0,0.00020295,2]
[384659654,1757507450518,-305.12,0.00020295,2]
[384659656,1757507450528,-480.0,0.00020295,2]
[384659657,1757507450537,-480.0,0.00020295,2]
[384659659,1757507450547,-484.13564522,0.00020295,2]
[384659661,1757507450556,-480.0,0.00020295,2]
[384659662,1757507450566,-456.10223806,0.00020296,2]
[384659664,1757507450575,-480.97270746,0.00020296,2]
[384659665,1757507450584,-480.0,0.00020296,2]
[384659667,1757507450594,-480.0,0.00020296,2]
[384659669,1757507450602,-480.0,0.00020296,2]
[384659670,1757507450612,-480.0,0.00020296,2]
[384659672,1757507450621,-480.0,0.00020296,2]
[384659674,1757507450631,-480.0,0.00020296,2]
[384659675,1757507450640,-480.0,0.00020296,2]
[384659677,1757507450649,-480.0,0.00020296,2]
[384659679,1757507450658,-481.96661301,0.00020296,2]
[384659680,1757507450668,-480.0,0.00020296,2]
[384659682,1757507450681,-480.0,0.00020296,2]
[384659684,1757507450690,-480.0,0.00020296,2]
[384659685,1757507450700,-480.0,0.00020296,2]
[384659687,1757507450709,-503.59065188,0.00020296,2]
[384659688,1757507450718,-480.0,0.00020296,2]
[384659690,1757507450727,-480.0,0.00020296,2]
[384659692,1757507450737,-480.0,0.00020296,2]
[384659693,1757507450746,-480.0,0.00020296,2]
[384659695,1757507450755,-480.0,0.00020296,2]
[384659697,1757507450764,-481.74128208,0.00020296,2]
[384659698,1757507450774,-480.0,0.00020296,2]
[384659700,1757507450783,-480.0,0.00020296,2]
[384659701,1757507450792,-10472.24476565,0.00020327,2]
[384659703,1757507450802,-480.0,0.00020414,2]
[384659705,1757507450814,-480.0,0.00020414,2]
[384659707,1757507450828,-519.33,0.00020468,2]
[384659709,1757507450841,-480.0,0.00020468,2]
[384659711,1757507450855,-480.0,0.00020468,2]
[384659713,1757507450866,-480.0,0.00020468,2]
[384659714,1757507450878,-480.0,0.00020468,2]
[384659716,1757507450891,-480.0,0.00020468,2]
[384659718,1757507450903,-480.0,0.00020468,2]
[384659720,1757507450917,-480.0,0.00020468,2]
[384659722,1757507450933,-480.0,0.00020468,2]
[384659724,1757507450945,-480.0,0.00020468,2]
[384659726,1757507450958,-480.0,0.00020468,2]
[384659728,1757507450970,-414.59,0.00020468,2]
[384659730,1757507450984,-480.0,0.00020468,2]
[384659731,1757507450996,-480.0,0.00020468,2]
[384659733,1757507451008,-480.0,0.00020468,2]
[384659735,1757507451020,-480.0,0.00020468,2]
[384659737,1757507451032,-480.0,0.00020468,2]
[384659739,1757507451045,-1865.35,0.00020468,2]
[384659741,1757507451058,-480.0,0.00020468,2]
[384659743,1757507451070,-480.0,0.00020468,2]
[384659744,1757507451082,-480.0,0.00020468,2]
[384659746,1757507451092,-480.0,0.00020469,2]
[384659748,1757507451104,-480.0,0.00020469,2]
[384659750,1757507451115,-13.84020892,0.00020469,2]
[384659763,1757507451279,-466.15979108,0.00020469,2]
[384659765,1757507451292,-480.0,0.00020469,2]
[384659767,1757507451304,-317.47,0.00020469,2]
[384659769,1757507451316,-480.0,0.00020469,2]
[384659770,1757507451327,-480.0,0.00020469,2]
[384659771,1757507451339,-480.0,0.00020469,2]
[384659772,1757507451350,-480.0,0.00020469,2]
[384659773,1757507451361,-480.0,0.00020469,2]
[384659774,1757507451372,-480.0,0.00020469,2]
[384659775,1757507451383,-480.0,0.00020469,2]
[384659776,1757507451394,-296.47,0.00020469,2]
[384659777,1757507451405,-480.0,0.00020469,2]
[384659778,1757507451416,-480.0,0.00020469,2]
[384659779,1757507451431,-411.24139286,0.00020469,2]
[384659780,1757507451443,-480.0,0.00020469,2]
[384659781,1757507451453,-480.0,0.00020469,2]
[384659782,1757507451465,-480.0,0.00020469,2]
[384659783,1757507451476,-480.0,0.00020469,2]
[384659784,1757507451486,-480.0,0.00020469,2]
[384659785,1757507451498,-480.0,0.00020469,2]
[384659786,1757507451509,-495.3,0.00020469,2]
[384659787,1757507451520,-480.0,0.00020469,2]
[384659788,1757507451531,-480.0,0.00020469,2]
[384659789,1757507451543,-480.0,0.00020469,2]
[384659791,1757507451554,-480.0,0.00020469,2]
[384659792,1757507451565,-1940.94,0.00020469,2]
[384659794,1757507451577,-480.0,0.00020469,2]
[384659795,1757507451588,-480.0,0.00020469,2]
[384659797,1757507451599,-480.0,0.00020469,2]
[384659799,1757507451610,-480.0,0.00020469,2]
[384659801,1757507451621,-480.0,0.00020469,2]
[384659804,1757507451633,-480.0,0.00020469,2]
[384659806,1757507451645,-782.32,0.00020469,2]
[384659808,1757507451657,-480.0,0.00020469,2]
[384659810,1757507451667,-480.0,0.00020469,2]
[384659812,1757507451679,-480.0,0.00020469,2]
[384659814,1757507451689,-480.0,0.00020556,2]
[384659816,1757507451698,-480.0,0.00020556,2]
[384659818,1757507451708,-866.85,0.00020556,2]
[384659820,1757507451719,-480.0,0.00020556,2]
[384659822,1757507451728,-480.0,0.00020556,2]
[384659824,1757507451738,-500.0,0.00020557,2]
[384659826,1757507451747,-480.0,0.00020567,2]
[384659828,1757507451756,-104.87975808,0.00020567,2]
[384659832,1757507451785,-90.15828152,0.00020567,2]
[384659834,1757507451794,-480.0,0.00020567,2]
[384659836,1757507451803,-316.43868232,0.00020567,2]
[384659838,1757507451814,-163.56131768,0.00020567,2]
[384659840,1757507451823,-480.0,0.00020567,2]
[384659842,1757507451833,-98.96886091,0.00020567,2]
[384663051,1757507485862,864.0,0.00018614,20]
[384669125,1757507667651,411.017864,0.00013292,2]
[384669126,1757507690938,411.017864,0.00013292,2]
[384669127,1757507714471,411.017864,0.00013292,2]
[384669128,1757507737924,411.017864,0.00013292,2]
[384669133,1757507761974,411.017864,0.00013292,2]
[384669134,1757507785539,411.017864,0.00013292,2]
[384669135,1757507808863,411.017864,0.00013292,2]
[384669136,1757507831209,411.017864,0.00013292,2]
[384669137,1757507836198,-411.017864,0.00013426,2]
[384669138,1757507836229,-411.017864,0.00013562,2]
[384669139,1757507836267,-411.017864,0.00013699,2]
[384669140,1757507836296,-220.4613828,0.0001427,2]
[384669141,1757507836328,-303.4242166,0.00014409,2]
[384669142,1757507836358,-374.583089,0.00015068,2]
[384669143,1757507836389,-300.0,0.00015082,2]
[384669144,1757507836419,-812.0,0.00015082,2]
[384669145,1757507836449,-300.0,0.00015082,2]
[384669146,1757507836478,-1200.0,0.00015082,2]
[384669147,1757507836512,-212.9654392,0.00015083,2]
[384669148,1757507836634,-87.0345608,0.00015083,2]
[384669149,1757507836666,-300.0,0.00015083,2]
[384669150,1757507836697,-300.0,0.00015083,2]
[384669151,1757507836728,-300.0,0.00015083,2]
[384669152,1757507836761,-300.0,0.00015083,2]
[384669153,1757507836791,-300.0,0.00015083,2]
[384669154,1757507836822,-300.0,0.00015083,2]
[384669155,1757507836853,-300.0,0.00015083,2]
[384669156,1757507836883,-300.0,0.00015083,2]
[384669157,1757507836913,-300.0,0.00015083,2]
[384669158,1757507836942,-300.0,0.00015083,2]
[384669159,1757507836972,-300.0,0.00015083,2]
[384669160,1757507837004,-300.0,0.00015083,2]
[384669161,1757507837036,-300.0,0.00015083,2]
[384669162,1757507837067,-300.0,0.00015083,2]
[384669163,1757507837098,-40.80689415,0.00015083,2]
[384669164,1757507837317,-1344.3270901,0.00015083,2]
[384669165,1757507837348,-600.0,0.00015384,2]
[384669166,1757507837376,-217.67150996,0.00015722,2]
[384669167,1757507837404,-203.30414021,0.00015722,2]
[384669168,1757507837432,-846.88337432,0.00015722,2]
[384669169,1757507837460,-530.87637315,0.00015722,2]
[384669170,1757507837488,-233.08191698,0.00015722,2]
[384669171,1757507837515,-500.0,0.000158,2]
[384669172,1757507837543,-500.0,0.000158,2]
[384669173,1757507837735,-500.0,0.000158,2]
[384669174,1757507837765,-480.0,0.0001605,2]
[384669175,1757507837794,-480.0,0.0001605,2]
[384669176,1757507837826,-480.0,0.0001605,2]
[384669177,1757507837856,-480.0,0.0001605,2]
[384669178,1757507837885,-480.0,0.0001605,2]
[384669179,1757507837913,-480.0,0.0001605,2]
[384669180,1757507837942,-480.0,0.0001605,2]
[384669181,1757507837970,-480.0,0.0001605,2]
[384669182,1757507838913,-9674.65927358,0.00016051,2]
[384669183,1757507855501,-224.54542008,0.00016836,7]
[384669184,1757507855524,-224.54542008,0.00016836,7]
[384669192,1757508081761,10000.0,0.00024,30]
[384669194,1757508092815,4895.28,0.00024,30]
[384669197,1757508130358,229.3,0.00024,30]
[384669198,1757508191992,157.69095,0.00027397,120]
[384669199,1757508197470,1000.0,0.00024,30]
[384669200,1757508238101,5000.0,0.00017,7]
[384669201,1757508247634,5000.0,0.00017,7]
[384669202,1757508256581,5000.0,0.00017,7]
[384669213,1757508264902,5000.0,0.00017,7]
[384669214,1757508264936,171.733835,7.068e-05,2]
[384669215,1757508265118,171.733835,9.424e-05,2]
[384669216,1757508265381,171.733835,0.0001178,2]
[384669217,1757508273230,5000.0,0.00017,7]
[384669218,1757508289429,524.1706352,0.00017,7]
[384669219,1757508295245,231.98612,0.0001287,2]
[384669220,1757508295579,231.98612,0.00013,2]
[384669221,1757508295909,225.52075321,0.00013131,2]
[384669222,1757508382094,-499.5800597,0.00013701,2]
[384669223,1757508382123,-499.5800597,0.00013839,2]
[384669224,1757508382153,-499.5800597,0.00013979,2]
[384669225,1757508382181,-1000.0,0.00014041,2]
[384669226,1757508382209,-499.5800597,0.0001412,2]
[384669227,1757508382237,-171.733835,0.00014136,2]
[384669228,1757508382266,-1200.0,0.00014967,2]
[384669229,1757508382294,-300.0,0.00014967,2]
[384669230,1757508382483,-1200.0,0.00014968,2]
[384669231,1757508382512,-300.0,0.00014968,2]
[384669232,1757508382540,-300.0,0.00014968,2]
[384669233,1757508382569,-300.0,0.00014968,2]
[384669234,1757508382607,-300.0,0.00014968,2]
[384669235,1757508382755,-0.01,0.00014969,2]
[384669236,1757508382881,-4670.82879949,0.00014969,2]
[384669237,1757508382899,-5329.16120051,0.00014969,2]
[384669238,1757508382908,-480.0,0.00015016,2]
[384669239,1757508382917,-480.0,0.00015016,2]
[384669240,1757508382926,-480.0,0.00015016,2]
[384669241,1757508382935,-522.72,0.00015016,2]
[384669242,1757508382945,-480.0,0.00015016,2]
[384669243,1757508382958,-2228.11879949,0.00015017,2]
[384669245,1757508536301,-412.313591,0.00013699,2]
[384669246,1757508536330,-681.0019812,0.00014232,2]
[384669247,1757508536362,-1273.9880139,0.00014256,2]
[384669248,1757508536392,-1200.0,0.00014344,2]
[384669249,1757508536422,-300.0,0.00014344,2]
[384669250,1757508536518,-2265.4028278,0.00014345,2]
[384669251,1757508586415,-10000.01,0.00014067,2]
[384669252,1757508586551,-10000.01,0.00014067,2]
[384669253,1757508586709,-10000.01,0.00014067,2]
[384669254,1757508590254,-10000.01,0.00014067,2]
[384669255,1757508590416,-10000.01,0.00014067,2]
[384669256,1757508618500,-10000.01,0.00013605,2]
[384669258,1757508632633,-430.07000001,0.00013605,2]
[384669259,1757508632690,-175.36325129,0.00013605,2]
[384669260,1757508632700,-442.62782168,0.00013787,2]
[384669261,1757508632745,-337.07291127,0.00013787,2]
[384669579,1757508638400,-321.64937841,0.00013787,2]
[384669586,1757508638457,-656.14512664,0.00013787,2]
[384669588,1757508638467,-90.46545875,0.00013926,2]
[384669590,1757508638478,-1667.02977925,0.00013926,2]
[384669592,1757508638488,-1757.495238,0.00014067,2]
[384669594,1757508638497,-1200.0,0.000142,2]
[384669596,1757508638506,-300.0,0.00014201,2]
[384669598,1757508638516,-300.0,0.00014201,2]
[384669600,1757508638525,-300.0,0.00014201,2]
[384669602,1757508638535,-300.0,0.00014201,2]
[384669604,1757508638544,-300.0,0.00014201,2]
[384669606,1757508638553,-7740.8218982,0.00014202,2]
[384669608,1757508638562,-7740.8218982,0.00014345,2]
[384669610,1757508638572,-480.0,0.00015015,2]
[384669612,1757508638581,-480.94801175,0.00015015,2]
[384669614,1757508638591,-565.88,0.00015016,2]
[384669616,1757508638600,-486.54,0.00015016,2]
[384669618,1757508638609,-480.0,0.00015016,2]
[384669620,1757508638619,-504.60631498,0.00015016,2]
[384669622,1757508638628,-480.0,0.00015016,2]
[384669624,1757508638637,-483.18643013,0.00015016,2]
[384669626,1757508638646,-480.0,0.00015016,2]
[384669628,1757508638655,-399.82021271,0.00015016,2]
[384669630,1757508638664,-480.0,0.00015016,2]
[384669632,1757508638673,-480.0,0.00015016,2]
[384669634,1757508638686,-480.0,0.00015016,2]
[384669636,1757508638695,-480.0,0.00015016,2]
[384669638,1757508638705,-592.40861969,0.00015016,2]
[384669640,1757508638714,-575.27200157,0.00015016,2]
[384669642,1757508638723,-480.0,0.00015016,2]
[384669644,1757508638732,-480.0,0.00015016,2]
[384669646,1757508638742,-480.0,0.00015016,2]
[384669648,1757508638751,-480.0,0.00015016,2]
[384669650,1757508638761,-480.0,0.00015016,2]
[384669652,1757508638770,-480.0,0.00015016,2]
[384669654,1757508638779,-500.94,0.00015016,2]
[384669657,1757508638791,-480.0,0.00015016,2]
[384669659,1757508638800,-480.0,0.00015016,2]
[384669661,1757508638809,-480.0,0.00015016,2]
[384669663,1757508638818,-480.0,0.00015016,2]
[384669664,1757508638827,-480.0,0.00015016,2]
[384669667,1757508638837,-480.0,0.00015016,2]
[384669668,1757508638847,-480.0,0.00015016,2]
[384669670,1757508638856,-480.0,0.00015016,2]
[384669672,1757508638865,-480.0,0.00015016,2]
[384669674,1757508638874,-480.0,0.00015016,2]
[384669676,1757508638884,-480.0,0.00015016,2]
[384669678,1757508638893,-357.09474661,0.00015016,2]
[384669679,1757508638902,-480.0,0.00015016,2]
[384669680,1757508638911,-488.04220272,0.00015016,2]
[384669681,1757508638921,-1236.29,0.00015016,2]
[384669682,1757508638930,-890.78091521,0.00015017,2]
[384669683,1757508638940,-500.0,0.00015068,2]
[384669685,1757508638950,-220.404944,0.00015075,2]
[384669687,1757508638959,-13310.3754861,0.00015209,2]
[384669689,1757508638969,-565.88,0.0001529,2]
[384669691,1757508638978,-486.54,0.0001529,2]
[384669693,1757508638987,-480.0,0.0001529,2]
[384669695,1757508638997,-480.0,0.0001529,2]
[384669697,1757508639007,-480.0,0.0001529,2]
[384669699,1757508639016,-480.0,0.0001529,2]
[384669701,1757508639027,-480.0,0.0001529,2]
[384669703,1757508639037,-480.0,0.0001529,2]
[384669705,1757508639046,-625.12698014,0.0001529,2]
[384669707,1757508639056,-480.0,0.0001529,2]
[384669709,1757508639065,-485.09044427,0.0001529,2]
[384669711,1757508639075,-480.0,0.0001529,2]
[384669713,1757508639084,-480.0,0.0001529,2]
[384669715,1757508639094,-480.0,0.0001529,2]
[384669717,1757508639103,-500.94,0.0001529,2]
[384669719,1757508639112,-480.0,0.0001529,2]
[384669721,1757508639121,-480.0,0.0001529,2]
[384669723,1757508639130,-480.0,0.0001529,2]
[384669725,1757508639142,-480.0,0.0001529,2]
[384669727,1757508639151,-480.0,0.0001529,2]
[384669729,1757508639161,-480.0,0.0001529,2]
[384669731,1757508639170,-480.0,0.0001529,2]
[384669733,1757508639179,-480.0,0.0001529,2]
[384669735,1757508639189,-480.0,0.0001529,2]
[384669737,1757508639198,-480.0,0.0001529,2]
[384669739,1757508639208,-480.0,0.0001529,2]
[384669741,1757508639217,-480.0,0.0001529,2]
[384669743,1757508639226,-1236.29,0.0001529,2]
[384669745,1757508639236,-420.0,0.00015555,2]
[384669747,1757508639246,-301.0,0.00015555,2]
[384669749,1757508639255,-420.0,0.00015555,2]
[384669751,1757508639264,-420.0,0.00015555,2]
[384669753,1757508639274,-420.0,0.00015555,2]
[384669755,1757508639284,-500.0,0.00015563,2]
[384669757,1757508639293,-500.0,0.00015563,2]
[384669759,1757508639303,-621.41103035,0.00015563,2]
[384669760,1757508639313,-500.0,0.00015563,2]
[384669763,1757508639324,-500.0,0.00015563,2]
[384669764,1757508639333,-500.0,0.00015563,2]
[384669767,1757508639343,-500.0,0.00015563,2]
[384669768,1757508639352,-515.46543759,0.00015563,2]
[384669770,1757508639362,-500.0,0.00015563,2]
[384669785,1757508639487,-379.67843668,0.00015563,2]
[384669787,1757508639498,-592.60073574,0.00015563,2]
[384669789,1757508639508,-565.88,0.00015564,2]
[384669791,1757508639517,-486.54,0.00015564,2]
[384669793,1757508639526,-480.0,0.00015564,2]
[384669795,1757508639535,-480.0,0.00015564,2]
[384669797,1757508639545,-480.0,0.00015564,2]
[384669799,1757508639554,-480.0,0.00015564,2]
[384669801,1757508639563,-480.0,0.00015564,2]
[384669804,1757508639573,-480.0,0.00015564,2]
[384669805,1757508639583,-480.0,0.00015564,2]
[384669808,1757508639592,-480.0,0.00015564,2]
[384669810,1757508639602,-480.0,0.00015564,2]
[384669812,1757508639611,-500.94,0.00015564,2]
[384669814,1757508639620,-480.0,0.00015564,2]
[384669816,1757508639630,-480.0,0.00015564,2]
[384669818,1757508639639,-480.0,0.00015564,2]
[384669820,1757508639650,-480.0,0.00015564,2]
[384669822,1757508639659,-480.0,0.00015564,2]
[384669824,1757508639668,-480.0,0.00015564,2]
[384669826,1757508639680,-480.0,0.00015564,2]
[384669827,1757508639690,-480.0,0.00015564,2]
[384669830,1757508639699,-480.0,0.00015564,2]
[384669832,1757508639709,-480.0,0.00015564,2]
[384669833,1757508639718,-480.0,0.00015564,2]
[384669835,1757508639728,-1236.29,0.00015564,2]
[384669837,1757508639738,-1680.0,0.0001562,2]
[384669839,1757508639747,-189.62555355,0.00015673,2]
[384669841,1757508639757,-480.0,0.00015673,2]
[384669843,1757508639766,-480.0,0.00015673,2]
[384669845,1757508639775,-480.0,0.00015673,2]
[384669847,1757508639784,-480.0,0.00015673,2]
[384669850,1757508639794,-480.0,0.00015673,2]
[384669852,1757508639803,-174.01,0.00015673,2]
[384669854,1757508639812,-486.00422477,0.00015673,2]
[384669856,1757508639821,-480.0,0.00015673,2]
[384669858,1757508639830,-480.0,0.00015673,2]
[384669860,1757508639839,-480.0,0.00015673,2]
[384669862,1757508639849,-480.0,0.00015673,2]
[384669864,1757508639858,-480.0,0.00015673,2]
[384669866,1757508639868,-480.0,0.00015673,2]
[384669868,1757508639878,-480.0,0.00015673,2]
[384669871,1757508639888,-480.0,0.00015673,2]
[384669872,1757508639897,-480.0,0.00015673,2]
[384669874,1757508639907,-480.0,0.00015673,2]
[384669876,1757508639916,-480.0,0.00015673,2]
[384669878,1757508639926,-480.0,0.00015673,2]
[384669880,1757508639936,-480.0,0.00015673,2]
[384669882,1757508639945,-264.87546715,0.00015673,2]
[384669884,1757508639955,-480.0,0.00015673,2]
[384669888,1757508639965,-480.0,0.00015673,2]
[384669891,1757508639974,-480.0,0.00015673,2]
[384669892,1757508639983,-480.0,0.00015673,2]
[384669895,1757508639992,-480.0,0.00015673,2]
[384669897,1757508640001,-480.0,0.00015673,2]
[384669899,1757508640012,-480.0,0.00015673,2]
[384669900,1757508640022,-18450.0726095,0.00015674,2]
[384669902,1757508640031,-1677.32730114,0.00015674,2]
[384669905,1757508640045,-4060.82434116,0.00015674,2]
[384669907,1757508640055,-865.2193491,0.00015674,2]
[384669909,1757508640065,-565.88,0.00015838,2]
[384669911,1757508640074,-486.54,0.00015838,2]
[384669913,1757508640083,-480.0,0.00015838,2]
[384669915,1757508640094,-480.0,0.00015838,2]
[384669917,1757508640104,-480.0,0.00015838,2]
[384669919,1757508640113,-480.0,0.00015838,2]
[384669921,1757508640122,-480.0,0.00015838,2]
[384669923,1757508640132,-480.0,0.00015838,2]
[384669925,1757508640142,-480.0,0.00015838,2]
[384669927,1757508640151,-480.0,0.00015838,2]
[384669929,1757508640162,-500.94,0.00015838,2]
[384669931,1757508640171,-480.0,0.00015838,2]
[384669933,1757508640181,-480.0,0.00015838,2]
[384669935,1757508640192,-480.0,0.00015838,2]
[384669937,1757508640201,-480.0,0.00015838,2]
[384669939,1757508640210,-480.0,0.00015838,2]
[384669941,1757508640219,-480.0,0.00015838,2]
[384669943,1757508640229,-480.0,0.00015838,2]
[384669945,1757508640239,-480.0,0.00015838,2]
[384669947,1757508640248,-480.0,0.00015838,2]
[384669949,1757508640257,-480.0,0.00015838,2]
[384669952,1757508640267,-480.0,0.00015838,2]
[384669953,1757508640276,-1236.29,0.00015838,2]
[384669956,1757508640286,-262.76,0.00015937,3]
[384669957,1757508640295,-449.32840222,0.00015947,2]
[384669959,1757508640304,-162.4069477,0.00015947,2]
[384669961,1757508640313,-480.0,0.00015947,2]
[384669964,1757508640323,-549.12,0.00015947,2]
[384669965,1757508640332,-480.0,0.00015947,2]
[384669968,1757508640342,-480.0,0.00015947,2]
[384669969,1757508640351,-480.0,0.00015947,2]
[384669972,1757508640361,-480.0,0.00015947,2]
[384669973,1757508640370,-480.0,0.00015947,2]
[384669975,1757508640380,-243.64989326,0.00015947,2]
[384669977,1757508640389,-480.0,0.00015947,2]
[384669980,1757508640398,-553.9196619,0.00015947,2]
[384669981,1757508640407,-533.85093713,0.00015947,2]
[384669984,1757508640417,-584.19226138,0.0001595,2]
[384669986,1757508640426,-160.0,0.00015976,2]
[384669988,1757508640437,-630.62,0.0001604,3]
[384669990,1757508640446,-525.52,0.0001604,3]